Cogmind - Beta 14 *** ADVENTURER MODE // 2024.09.06 @ 23:37:08 Player: Mbreton Result: Destroyed by Y-45 Defender with Heavy Assault Rifle Performance ------------- Evolutions (2) 1000 Regions Visited (3) 600 Robots Destroyed (26) 130 Value Destroyed (682) 682 Prototype IDs (4) 80 Alien Tech Used (0) 0 Bonus (0) 0 TOTAL SCORE: 2492 Bonus ------- None Cogmind --------- Core Integrity 0/550 Matter 300/300 Energy 10/100 System Corruption 0% Temperature Warning (315) Movement Core (300) Ox5 Location -8/Materials Parts ------- > --- POWER (1) -------- Ion Engine > --- PROPULSION (4) --- (None) > --- UTILITY (4) ------ Small Storage Unit > --- WEAPON (2) ------- Beam Cannon Beam Cannon > --- INVENTORY (8) ---- Advanced Weight Redist. System Improved Sensor Array Improved Sensor Array Improved Sensor Array Improved Targeting Computer Hammer Peak State ------------ > --- POWER ------------ Light Nuclear Core > --- PROPULSION ------- Compact Wheel Compact Wheel > --- UTILITY ---------- Small Storage Unit Improved Sensor Array Medium Armor Plating > --- WEAPON ----------- EM Shotgun Hammer > --- INVENTORY -------- Ion Engine Ion Engine Improved Sensor Array Improved Sensor Array Improved Sensor Array Improved Targeting Computer Grenade Launcher [Rating: 15] Favorites ----------- Power Ion Engine Engine Ion Engine Power Core Light Nuclear Core Propulsion Compact Wheel Wheel Compact Wheel Utility Small Storage Unit Device Improved Sensor Array Storage Small Storage Unit Protection Medium Armor Plating Weapon Hammer Energy Gun EM Shotgun Energy Cannon Beam Cannon Launcher Grenade Launcher Special Weapon Mining Laser Impact Weapon Hammer Build | -11 -10 -9 -8 ------- Run | Yrd Mat Mat Mat Slots Evolved 4 | . . 2 2 Power . | . . . . Propulsion 2 | . . 2 . Utility 2 | . . . 2 Weapon . | . . . . Parts Attached 24 | 4 4 5 11 Power 4 | 1 . 1 2 Engine 3 | 1 . . 2 Core 1 | . . 1 . Reactor . | . . . . Propulsion 5 | 2 . 2 1 Treads . | . . . . Leg . | . . . . Wheel 5 | 2 . 2 1 Hover . | . . . . Flight . | . . . . Utility 4 | 1 1 1 1 Device 2 | . 1 1 . Storage 1 | 1 . . . Processor . | . . . . Hackware . | . . . . Protection 1 | . . . 1 Artifact . | . . . . Weapon 11 | . 3 1 7 Energy Gun 3 | . . 1 2 Energy Cannon 2 | . . . 2 Ballistic Gun . | . . . . Ballistic Cannon . | . . . . Launcher 3 | . 1 . 2 Special Weapon 1 | . 1 . . Impact Weapon 2 | . 1 . 1 Slashing Weapon . | . . . . Piercing Weapon . | . . . . Special Melee Weapon . | . . . . Unidentified Prototypes . | . . . . Parts Lost 12 | . . 3 9 Power 2 | . . . 2 Propulsion 4 | . . 2 2 Utility 3 | . . 1 2 Weapon 3 | . . . 3 Highest Loss Streak 5 | . . 2 5 To Critical Strikes . | . . . . Average Slot Usage (%) 69 | . 89 76 45 Engine 6 | . 14 4 2 Core 3 | . . 6 2 Wheel 21 | . 28 24 12 Device 6 | . 7 7 3 Storage 11 | . 14 11 9 Energy Gun 3 | . . 7 1 Launcher 5 | . 13 3 1 Impact Weapon 9 | . 9 11 7 Peak Build Rating 15 | 4 7 14 15 Average Rating 8 | 3 6 10 8 On Entrance 6 | . 4 7 13 Naked Turns . | . . . . Heaviest Build 23 | 10 16 16 23 Greatest Support 42 | 26 26 42 32 Greatest Overweight (x) 3 | . . 1 3 Average Overweight (x) . | . . . . Largest Inventory Capacity 8 | 8 8 8 8 Average Capacity 7 | 7 8 8 8 Most Carried 8 | 2 5 8 8 Average Carried 5 | . 3 7 6 Final Capacity 8 | 8 8 8 8 Final Carried 8 | 1 5 8 6 Class Distribution -------------------- 100% | Mutant Dominant Class ---------------- Mutant | -10/Materials Mutant | -9/Materials Mutant | -8/Materials Resources | -11 -10 -9 -8 ----------- Run | Yrd Mat Mat Mat Matter Collected 465 | 233 77 50 105 Remotely . | . . . . Salvage Created 894 | . 227 242 425 Parts 42 | . 15 12 15 Haulers Intercepted . | . . . . Recyclers Shooed 1 | . . 1 . Parts Field Recycled . | . . . . Retrieved Matter . | . . . . Parts Self-Destructed . | . . . . Prevented . | . . . . Kills | -11 -10 -9 -8 ------- Run | Yrd Mat Mat Mat Combat Hostiles Destroyed 18 | . 2 5 11 Melee 4 | . . 1 3 Guns 2 | . . 2 . Cannons 2 | . . . 2 AOE 6 | . 2 1 3 Classes Destroyed 6 | . 3 3 . Tunneler 1 | . . 1 . Recycler 3 | . 3 . . Watcher 4 | . 2 2 . Swarmer 7 | . 2 2 3 Grunt 9 | . . 2 7 Sentry 2 | . . 1 1 Best Kill Streak 4 | . 4 2 4 Combat Bots Only 4 | . 2 2 4 Max Kills in Single Turn 3 | . 2 1 3 Gunslinging . | . . . . Exploded 3 | . 1 1 3 Melee 1 | . . 1 1 Uniques/NPCs Destroyed . | . . . . Combat | -11 -10 -9 -8 -------- Run | Yrd Mat Mat Mat Hostile Shots Fired 192 | . 1 46 145 Missed 51 | . . 12 39 Damage Taken 1631 | . 39 334 1258 Core 630 | . . 77 553 Absorbed by Shields . | . . . . Ignored by Resistances 466 | . 11 97 358 Core Remaining (%) 93 | 100 100 80 . Volleys Fired 40 | . 3 16 21 Largest 2 | . 1 1 2 Hottest 120 | . 30 45 120 Shots Fired 52 | . 3 16 33 Gun 23 | . . 16 7 Cannon 24 | . . . 24 Launcher 5 | . 3 . 2 Special . | . . . . Kinetic . | . . . . Thermal 24 | . . . 24 Explosive 5 | . 3 . 2 Electromagnetic 23 | . . 16 7 Robot Hit Streak 17 | . 2 11 17 Robot Miss Streak 2 | . . 2 1 Penetration Max . | . . . . Secondary Targets . | . . . . Shots Hit Robots 78 | . 5 30 43 Core Hits 33 | . 8 9 16 Critical Kills 2 | . 1 . 1 Critical Parts Destroyed 6 | . . 2 4 Critical Strikes 8 | . 1 2 5 Smash 8 | . 1 2 5 Melee Attacks 35 | . 4 17 14 Impact 35 | . 4 17 14 Slashing . | . . . . Piercing . | . . . . Sneak Attacks 3 | . 2 1 . Combat Hostiles . | . . . . Follow-up Attacks . | . . . . Damage Inflicted 2015 | . 304 735 976 Guns 362 | . . 236 126 Cannons 381 | . . . 381 Explosions 469 | . 178 125 166 Melee 803 | . 126 374 303 Ramming . | . . . . Kinetic . | . . . . Thermal 506 | . . 125 381 Explosive 344 | . 178 . 166 Electromagnetic 362 | . . 236 126 Impact 803 | . 126 374 303 Slashing . | . . . . Piercing . | . . . . Highest Corruption . | . . . . Average Corruption . | . . . . Corruption Purged . | . . . . Corruption Blocked . | . . . . Overload Shots . | . . . . Overflow Damage 180 | . . 69 111 Projectiles . | . . . . Explosions . | . . . . Melee 180 | . . 69 111 Knockbacks 2 | . . 1 1 Impact 2 | . . 1 1 Kinetic . | . . . . Secondary . | . . . . Self-Inflicted Damage 57 | . 32 15 10 Shots 4 | . 2 1 1 Rammed . | . . . . Targets Rammed . | . . . . Kicked . | . . . . Crushed . | . . . . Highest Temperature 333 | . 10 12 333 Average Temperature 81 | . 7 4 124 Received Heat Transfer 909 | . . 117 792 Effects 1 | . . . 1 Short Circuit 1 | . . . 1 Siege Activations . | . . . . Robots Corrupted 4 | . . 1 3 Combat Hostiles 4 | . . 1 3 Parts Fried 8 | . . 5 3 Impact Corruptions 6 | . . 2 4 Robots Melted . | . . . . Combat Hostiles . | . . . . Parts Melted 2 | . . . 2 Heat Transferred 914 | . . 100 814 Parts Sabotaged . | . . . . Parts Stolen . | . . . . Parts Stripped . | . . . . Power Chain Reactions 2 | . . 2 . Alert | -11 -10 -9 -8 ------- Run | Yrd Mat Mat Mat Peak Influence 269 | . 177 113 269 Initial 63 | . . 63 10 Average 74 | . 54 37 153 Maximum Alert Level 1 | . . . 1 Low Security (%) 91 | 100 100 100 70 Level 1 8 | . . . 29 Level 2 . | . . . . Level 3 . | . . . . Level 4 . | . . . . Level 5 . | . . . . High Security . | . . . . Max Security . | . . . . Squads Dispatched 1 | . . 1 . Investigation . | . . . . Extermination . | . . . . Reinforcement 1 | . . 1 . Assault . | . . . . Garrison . | . . . . Intercept . | . . . . Searches Triggered . | . . . . Construction Impeded 1 | . . 1 . Haulers Reinforced . | . . . . Active Scanning Responses . | . . . . Cargo Convoy Interrupts . | . . . . Stealth | -11 -10 -9 -8 --------- Run | Yrd Mat Mat Mat Distress Signals 4 | . 1 2 1 Communications Jammed . | . . . . Distress Signals . | . . . . Times Spotted 36 | . 5 14 17 Peak Tracking Total 5 | . 4 4 5 Tactical Retreats 5 | . 1 1 3 Traps | -11 -10 -9 -8 ------- Run | Yrd Mat Mat Mat Traps Triggered . | . . . . Indirectly . | . . . . Trap Hack Attempts . | . . . . Triggered . | . . . . Disarmed . | . . . . Reprogrammed . | . . . . Reused . | . . . . Traps Extracted . | . . . . Installed . | . . . . Triggered . | . . . . Machines | -11 -10 -9 -8 ---------- Run | Yrd Mat Mat Mat Machines Disabled 3 | . 2 1 . Max in Single Turn 2 | . 2 1 . Machines Repaired . | . . . . Machines Dismantled . | . . . . Machines Sabotaged . | . . . . Overloaded Fab Kills . | . . . . Hacking | -11 -10 -9 -8 --------- Run | Yrd Mat Mat Mat Machines Accessed 7 | . 2 4 1 Terminals 6 | . 2 4 . Fabricators . | . . . . Repair Stations . | . . . . Recycling Units . | . . . . Scanalyzers 1 | . . . 1 Garrison Access . | . . . . Total Hacks 26 | . 6 14 6 Successful 17 | . 4 7 6 Failed 9 | . 2 7 . Catastrophic 1 | . . 1 . Database Lockouts . | . . . . Manual . | . . . . Terminals 20 | . 6 14 . Fabricators . | . . . . Repair Stations . | . . . . Recycling Units . | . . . . Scanalyzers 6 | . . . 6 Garrison Access . | . . . . Terminal Hacks 11 | . 4 7 . Prototype ID Bank 2 | . 1 1 . Terminal Index 1 | . . 1 . Alert Level 1 | . . 1 . Unreport Threat 2 | . . 2 . Transport Status 1 | . 1 . . Hauler Manifests 1 | . 1 . . Registered Components 1 | . 1 . . Zone Layout 2 | . . 2 . Fabricator Hacks . | . . . . Repair Station Hacks . | . . . . Recycling Unit Hacks . | . . . . Scanalyzer 6 | . . . 6 Insert Component 3 | . . . 3 Analyze 3 | . . . 3 Garrison Access Hacks . | . . . . Unauthorized Hacks . | . . . . Terminals . | . . . . Fabricators . | . . . . Repair Stations . | . . . . Recycling Units . | . . . . Scanalyzers . | . . . . Garrison Access . | . . . . Data Cores Recovered . | . . . . Used . | . . . . Hacking Detections 5 | . 1 4 . Full Trace Events . | . . . . Feedback Events . | . . . . Feedback Blocked . | . . . . Robot Schematics Acquired . | . . . . Robots Built . | . . . . Authchips . | . . . . Time . | . . . . Total Robot Build Rating . | . . . . Part Schematics Acquired 3 | . . . 3 Parts Built . | . . . . Authchips . | . . . . Time . | . . . . Total Part Build Rating . | . . . . Parts Repaired . | . . . . Time . | . . . . Parts Recycled . | . . . . Recycled Matter . | . . . . Retrieved Matter . | . . . . Retrieved Components . | . . . . Parts Scanalyzed 3 | . . . 3 Part Schematics Acquired 3 | . . . 3 Parts Damaged . | . . . . Bothacking | -11 -10 -9 -8 ------------ Run | Yrd Mat Mat Mat Used RIF Installer . | . . . . Robots Hacked . | . . . . Non-combat . | . . . . Combat . | . . . . Robot Hacks Applied . | . . . . Relay Couplers Released . | . . . . Fabnet Peak Effective % . | . . . . Robots Rewired . | . . . . Allies Hacked . | . . . . Hacks Repelled . | . . . . Allies | -11 -10 -9 -8 -------- Run | Yrd Mat Mat Mat Total Allies . | . . . . Largest Group . | . . . . Highest-Rated Group . | . . . . Highest-Rated Ally . | . . . . Total Orders . | . . . . Ally Attacks . | . . . . Total Damage . | . . . . Kills . | . . . . Allies Corrupted . | . . . . Allies Melted . | . . . . Intel | -11 -10 -9 -8 ------- Run | Yrd Mat Mat Mat Robot Analysis Total . | . . . . Derelict Logs Recovered . | . . . . Drone Launches . | . . . . Drone Recoveries . | . . . . Exploration | -11 -10 -9 -8 ------------- Run | Yrd Mat Mat Mat Turns Passed 1056 | 46 233 456 321 Spaces Moved 798 | 45 219 354 180 Core 23 | 5 . . 18 Treads . | . . . . Legs . | . . . . Wheels 775 | 40 219 354 162 Hover . | . . . . Flight . | . . . . Fastest Speed 50 | 50 90 90 100 Average Speed 96 | 84 90 96 106 Slowest Speed 200 | 90 90 100 200 Overloaded Moves . | . . . . Propulsion Burnouts . | . . . . Robots Hopped . | . . . . Cave-ins Triggered . | . . . . Exploration Rate (%) 22 | 3 37 31 18 Regions Visited 3 Branch Regions . Pre-discovered Areas . | . . . . Known Exits Taken . | . . . . Unknown Exits Taken 3 | 1 1 1 . Scrap Searched . | . . . . Spaces Dug 7 | . 7 . . Terrain Destroyed 40 | . 19 10 11 Melee 1 | . 1 . . Projectile . | . . . . AOE 39 | . 18 10 11 Terrain Rammed . | . . . . Walls Destroyed . | . . . . Machines Disabled . | . . . . Actions | -11 -10 -9 -8 --------- Run | Yrd Mat Mat Mat Total 973 | 53 244 423 253 Wait 47 | . 8 18 21 Move 795 | 44 218 353 180 Hop . | . . . . Pick Up 26 | 5 7 10 4 Fast Attach . | . . . . Attach 18 | 4 3 3 8 Detach 2 | . . . 2 Swap 6 | . 1 2 3 Drop 4 | . . 4 . Fire 40 | . 3 16 21 Melee 35 | . 4 17 14 Ram . | . . . . Kick . | . . . . Crush . | . . . . Escape Stasis . | . . . . Rewire . | . . . . Trap . | . . . . Miscellaneous . | . . . . Route ------- -11/Scrapyard -10/Materials (discovered 2 exits: *Mat / [*Min]) -9/Materials -8/Materials History --------- Turn | Location | Event 19 | -11/Scrapyard | Discovered new exit (range 15) 47 | -11/Scrapyard | Entered Materials 81 | -10/Materials | Discovered new exit (range 11) 134 | -10/Materials | Discovered new exit (range 14) 280 | -10/Materials | Entered another Materials area 280 | -9/Materials | Evolved 2 slots: Propulsion x2 301 | -9/Materials | Build established: Mutant 534 | -9/Materials | Discovered new exit (range 13) 736 | -9/Materials | Entered another Materials area 736 | -8/Materials | Evolved 2 slots: Utility x2 890 | -8/Materials | Lost 5 parts (1p2u2w) 981 | -8/Materials | Lost 3 parts (1p1n1w) 990 | -8/Materials | Core integrity fell below 50% 1046 | -8/Materials | Core integrity fell below 20% 1057 | -8/Materials | Destroyed by Y-45 Defender with Heavy Assault Rifle Last Messages --------------- K-01 Serf collects debris. U-05 Engineer builds a Door. K-01 Serf collects debris. Penetrated by Slug. K-01 Serf collects debris. W-25 Informer distress signal alerts nearby ally. K-01 Serf collects debris. R-06 Scavenger collects Imp. Heat Sink. K-01 Serf collects debris. Slug penetrates Wall. K-01 Serf collects debris. H-55 Commando heat short circuits Lgt. Nuclear Core. K-01 Serf collects debris. Acquired 10 matter. Penetrated by Slug. Ion Engine broken. Overheating: Short circuit. Y-45 Defender heat damages Beam Rifle. Map ----- +----------------------------------------------------+ | =%####????????????# #? #???????????????????? | | = #???????????????# #? #???????????????????? | | #????????????####+##########???????????????????? | | #??????????### #????????????????????? | | #??????????# # ! """ #????????????????????? | | " #????????????# ! """ #????????????????????? | | " #????????????# *""" !#????????????????????? | | " #????????????# %! #????????????????????? | | ###????????????#######+##########????????????????? | | ????????????????????# % #????????????????? | | ????????????######### #????????????????? | | ????????# #????????????????? | | ????????????###+########### #????????????????? | | ??????????????????????????# #????????????????? | | ??????????????????????????# #????????????????? | | ??????????????????????????# #????????????????? | | ??????????????????????????# #????????????????? | | ??????????????????????????# #????????????????? | | ??????????????????????????# #????????????????? | | ??????????????????????????# #????????????????? | | ??????????????????????????# #????????????????? | | ?????????????????########## #????????????????? | | ?????????????????# # #????????????????? | | ?????????????????# # ###r######???????? | | ?????????????????# # au ??????? | | ?????????????????# @Y k ! ??????? | | ?????????????????# ! # ??????? | | ?????????????????# # """ """ """???????? | | ?????????????????# k h # """ """ "?????????? | | ?????????????????# % # """ """??"?????????? | | ?????????????????# gk # """ """????????????? | | ?????????????????#####/#### """ ""?????????????? | | ????????????????????? k??? ????????????????? | | ???????????????????? ??? ?????????????????? | | ??????????????????? ???? * ?????????????????? | | ???????????????????###????######?????????????????? | | ?????????????????????????????????????????????????? | | ?????????????????????????????????????????????????? | | ?????????????????????????????????????????????????? | | ?????????????????????????????????????????????????? | | ?????????????????????????????????????????????????? | | ?????????????????????????????????????????????????? | | ?????????????????????????????????????????????????? | | ?????????????????????????????????????????????????? | | ?????????????????????????????????????????????????? | | ?????????????????????????????????????????????????? | | ?????????????????????????????????????????????????? | | ?????????????????????????????????????????????????? | | ?????????????????????????????????????????????????? | | ?????????????????????????????????????????????????? | +----------------------------------------------------+ Best States ------------- Heat Dissipation 31 Energy Generation 14 Energy Capacity 250 Matter Stores 300 Matter Capacity 300 Sight Range 16 Robot Scan Range 15 Terrain Scan Density 10 Armor Coverage 225 Resistance: KI 20 Resistance: TH 20 Resistance: EX 20 Resistance: EM 20 Resistance: I 20 Resistance: S 20 Resistance: P 20 Evasion (%) 44 Offensive Hacking 10 Item Schematics ----------------- Imp. Sensor Array | -8/Materials | Scanalyzed Com. Wheel | -8/Materials | Scanalyzed Grenade Launcher | -8/Materials | Scanalyzed Robot Schematics ------------------ None Fabricated ------------ Nothing Alien Tech Used ----------------- None Achievements -------------- None Challenges ------------ None Game ------ Seed MinesnifferRiotFalx Manual? 0 Play Time 00:18:21 Cumulative 21.1 hours Start 2024.09.06 @ 23:21:05 End 2024.09.06 @ 23:37:08 Sessions 1 Manual Loads 0 Difficulty Adventurer Special Mode None Game No. 16 Rogue 0 Adventurer 16 Explorer 0 Win Type - Total 0 Types 0/0/0/0/0/0/0/0/0 Lore% 8 Gallery% 21 Achievement% 20 Wizard Run 0 Options --------- Layout 1 ASCII 0 Keyboard 0 Movement Mouse Keybinds 0 Fullscreen 1 Font 32/SmallcapsGlow Map View 50x35 Zoom Use 27% Tactical HUD 0 Map Filters NONE Filters NONE Steam 1 RUN: 1aab7d4b-46f6-4b04-9ef8-864b526f1f2c